[Event "*** Titled Tuesday Blitz"]
[Site "Chess.com"]
[Date "2021.04.27"]
[Round "4"]
[White "Macron20hTF1"]
[Black "northridgehawk"]
[Result "0-1"]
[WhiteElo "2466"]
[BlackElo "2342"]
[TimeControl "180+1"]
[EndTime "10:38:27 PDT"]
[Termination "northridgehawk won on time"]

1. e4 {[%clk 0:03:00.9]} 1... e5 {[%clk 0:02:52.2]} 2. Bc4 {[%clk 0:02:57.8]}
2... Nc6 {[%clk 0:02:51.1]} 3. d3 {[%clk 0:02:58.4]} 3... Nf6 {[%clk 0:02:50.1]}
4. Nc3 {[%clk 0:02:54.5]} 4... Bc5 {[%clk 0:02:47.9]} 5. f4 {[%clk 0:02:52.8]}
5... d6 {[%clk 0:02:44.7]} 6. f5 {[%clk 0:02:48.9]} 6... a6 {[%clk 0:02:37.6]}
7. Nf3 {[%clk 0:02:47.2]} 7... Nd4 {[%clk 0:02:14.9]} 8. Bg5 {[%clk 0:02:42]}
8... c6 {[%clk 0:02:03.6]} 9. Bb3 {[%clk 0:02:17.4]} 9... h6 {[%clk 0:01:56.1]}
10. Bh4 {[%clk 0:02:13.8]} 10... b5 {[%clk 0:01:54.8]} 11. Nxd4 {[%clk
0:02:08.9]} 11... Bxd4 {[%clk 0:01:55.7]} 12. Qf3 {[%clk 0:02:06]} 12... Bb7
{[%clk 0:01:49.6]} 13. g4 {[%clk 0:01:53.9]} 13... a5 {[%clk 0:01:49.3]} 14. a4
{[%clk 0:01:48.8]} 14... b4 {[%clk 0:01:49]} 15. Ne2 {[%clk 0:01:43.3]} 15...
Bxb2 {[%clk 0:01:47.5]} 16. Rb1 {[%clk 0:01:43.6]} 16... Bd4 {[%clk 0:01:47.8]}
17. Nxd4 {[%clk 0:01:43.6]} 17... exd4 {[%clk 0:01:48.7]} 18. O-O {[%clk
0:01:12.5]} 18... Qb6 {[%clk 0:01:43.7]} 19. Bf2 {[%clk 0:00:59.4]} 19... Nd7
{[%clk 0:01:42.1]} 20. c3 {[%clk 0:00:56.2]} 20... Ne5 {[%clk 0:01:37.5]} 21.
Qe2 {[%clk 0:00:53.7]} 21... c5 {[%clk 0:01:34.8]} 22. cxd4 {[%clk 0:00:53.5]}
22... cxd4 {[%clk 0:01:35.7]} 23. Rfd1 {[%clk 0:00:16.4]} 23... O-O {[%clk
0:01:35.9]} 24. Qb2 {[%clk 0:00:15.6]} 24... Rac8 {[%clk 0:01:34.3]} 25. Bxd4
{[%clk 0:00:15.7]} 25... Qxd4+ {[%clk 0:01:32.9]} 26. Qxd4 {[%clk 0:00:15.6]}
26... Nf3+ {[%clk 0:01:33.8]} 27. Kf2 {[%clk 0:00:16.4]} 27... Nxd4 {[%clk
0:01:34.4]} 28. Bc4 {[%clk 0:00:16.7]} 28... Rfe8 {[%clk 0:01:32.1]} 29. Ke3
{[%clk 0:00:16.1]} 29... Nc6 {[%clk 0:01:29.5]} 30. Kf4 {[%clk 0:00:16]} 30...
Ne5 {[%clk 0:01:29.3]} 31. Bb5 {[%clk 0:00:16.7]} 31... Red8 {[%clk 0:01:27.2]}
32. d4 {[%clk 0:00:17]} 32... g5+ {[%clk 0:01:23.4]} 33. Kg3 {[%clk 0:00:15.6]}
33... Rc3+ {[%clk 0:01:22]} 34. Kg2 {[%clk 0:00:14.7]} 34... Nxg4 {[%clk
0:01:21.1]} 35. Re1 {[%clk 0:00:14.3]} 35... Ne3+ {[%clk 0:01:14.4]} 36. Kg1
{[%clk 0:00:14.2]} 36... Bxe4 {[%clk 0:01:12.4]} 37. Re2 {[%clk 0:00:13.2]}
37... d5 {[%clk 0:01:11.3]} 38. Rbe1 {[%clk 0:00:12.1]} 38... Nxf5 {[%clk
0:01:10.9]} 0-1

[Event "*** Titled Tuesday Blitz"]
[Site "Chess.com"]
[Date "2021.04.27"]
[Round "4"]
[White "Legendinunknown"]
[Black "Region_07"]
[Result "1-0"]
[WhiteElo "2606"]
[BlackElo "2376"]
[TimeControl "180+1"]
[EndTime "10:38:29 PDT"]
[Termination "Legendinunknown won on time"]

1. d4 {[%clk 0:03:00.9]} 1... d5 {[%clk 0:02:59.2]} 2. c4 {[%clk 0:02:58.8]}
2... Nc6 {[%clk 0:02:59]} 3. Nc3 {[%clk 0:02:56.2]} 3... dxc4 {[%clk 0:02:58]}
4. Nf3 {[%clk 0:02:55]} 4... Nf6 {[%clk 0:02:56.6]} 5. e4 {[%clk 0:02:54.5]}
5... Bg4 {[%clk 0:02:55.5]} 6. Be3 {[%clk 0:02:52.7]} 6... e6 {[%clk 0:02:54.6]}
7. Bxc4 {[%clk 0:02:51.8]} 7... Bb4 {[%clk 0:02:51.3]} 8. Qc2 {[%clk 0:02:48.7]}
8... Qe7 {[%clk 0:02:33.8]} 9. Be2 {[%clk 0:02:44.2]} 9... O-O-O {[%clk
0:02:17.3]} 10. Rd1 {[%clk 0:02:41.8]} 10... Bh5 {[%clk 0:02:10.1]} 11. O-O
{[%clk 0:02:38]} 11... Bg6 {[%clk 0:02:06]} 12. Bd3 {[%clk 0:02:12.7]} 12... Bh5
{[%clk 0:01:50.5]} 13. Be2 {[%clk 0:02:10.2]} 13... Bg6 {[%clk 0:01:49.7]} 14.
Nh4 {[%clk 0:02:08.7]} 14... Bxc3 {[%clk 0:01:41.8]} 15. Nxg6 {[%clk 0:02:07]}
15... hxg6 {[%clk 0:01:41.4]} 16. bxc3 {[%clk 0:02:05.4]} 16... Qe8 {[%clk
0:00:33.7]} 17. Bf3 {[%clk 0:01:59.7]} 17... Kb8 {[%clk 0:00:27.6]} 18. Rb1
{[%clk 0:01:58.8]} 18... e5 {[%clk 0:00:25.5]} 19. Rfd1 {[%clk 0:01:52.7]} 19...
Nd7 {[%clk 0:00:20.6]} 20. d5 {[%clk 0:01:48.7]} 20... Ne7 {[%clk 0:00:20.4]}
21. Qb3 {[%clk 0:01:38]} 21... b6 {[%clk 0:00:16.3]} 22. d6 {[%clk 0:01:30.6]}
22... Nc8 {[%clk 0:00:13]} 23. dxc7+ {[%clk 0:01:28.5]} 23... Kxc7 {[%clk
0:00:13.9]} 24. c4 {[%clk 0:01:27.9]} 24... Qe7 {[%clk 0:00:13.6]} 25. c5 {[%clk
0:01:26.1]} 25... Kb8 {[%clk 0:00:09.9]} 26. cxb6 {[%clk 0:01:24.4]} 26... axb6
{[%clk 0:00:10.8]} 27. a4 {[%clk 0:01:23.2]} 27... Rhe8 {[%clk 0:00:07.7]} 28.
a5 {[%clk 0:01:23.1]} 28... Nc5 {[%clk 0:00:06.2]} 29. Qb5 {[%clk 0:01:19.3]}
29... Rxd1+ {[%clk 0:00:04.3]} 30. Rxd1 {[%clk 0:01:20.2]} 30... Rd8 {[%clk
0:00:04.4]} 31. Rxd8 {[%clk 0:01:18.8]} 31... Qxd8 {[%clk 0:00:05.3]} 32. Bxc5
{[%clk 0:01:19.3]} 32... Qd2 {[%clk 0:00:03.8]} 33. Bxb6 {[%clk 0:01:13.9]}
33... Qc1+ {[%clk 0:00:03.9]} 34. Qf1 {[%clk 0:01:14.4]} 1-0

[Event "*** Titled Tuesday Blitz"]
[Site "Chess.com"]
[Date "2021.04.27"]
[Round "4"]
[White "Jenia84"]
[Black "Margency"]
[Result "0-1"]
[WhiteElo "2342"]
[BlackElo "2653"]
[TimeControl "180+1"]
[EndTime "10:38:30 PDT"]
[Termination "Margency won by resignation"]

1. e4 {[%clk 0:03:00.8]} 1... c5 {[%clk 0:02:59.4]} 2. Nf3 {[%clk 0:03:00.2]}
2... d6 {[%clk 0:02:59.6]} 3. d4 {[%clk 0:02:59.7]} 3... cxd4 {[%clk 0:02:59.7]}
4. Nxd4 {[%clk 0:03:00.3]} 4... Nf6 {[%clk 0:03:00.2]} 5. Nc3 {[%clk 0:03:00.4]}
5... a6 {[%clk 0:03:00.8]} 6. Be2 {[%clk 0:02:59.2]} 6... e6 {[%clk 0:03:00.8]}
7. Be3 {[%clk 0:02:58]} 7... Be7 {[%clk 0:03:00.1]} 8. Qd2 {[%clk 0:02:53.9]}
8... O-O {[%clk 0:02:57.2]} 9. O-O-O {[%clk 0:02:53.6]} 9... b5 {[%clk 0:02:57]}
10. f3 {[%clk 0:02:50.8]} 10... b4 {[%clk 0:02:50.5]} 11. Na4 {[%clk 0:02:42.7]}
11... Qa5 {[%clk 0:02:47.2]} 12. b3 {[%clk 0:02:39.7]} 12... Bd7 {[%clk
0:02:02.8]} 13. a3 {[%clk 0:02:38.3]} 13... d5 {[%clk 0:01:46]} 14. e5 {[%clk
0:02:33.1]} 14... Ne8 {[%clk 0:01:44.1]} 15. Nb2 {[%clk 0:02:00.5]} 15... Qxa3
{[%clk 0:01:33]} 16. Kb1 {[%clk 0:02:00.1]} 16... Nc6 {[%clk 0:01:32.7]} 17. f4
{[%clk 0:01:46.3]} 17... Nc7 {[%clk 0:01:30.3]} 18. Nxc6 {[%clk 0:01:28.2]}
18... Bxc6 {[%clk 0:01:31.2]} 19. f5 {[%clk 0:01:28.4]} 19... Nb5 {[%clk
0:01:26.9]} 20. Na4 {[%clk 0:01:22.5]} 20... Rfc8 {[%clk 0:01:14.7]} 21. Qd3
{[%clk 0:01:18.8]} 21... Nc3+ {[%clk 0:01:05.3]} 22. Nxc3 {[%clk 0:01:18.3]}
22... Bb5 {[%clk 0:00:57.2]} 23. Bc1 {[%clk 0:00:56.1]} 23... Bxd3 {[%clk
0:00:56.9]} 24. Bxa3 {[%clk 0:00:55.2]} 24... Bxf5 {[%clk 0:00:48.6]} 25. Bd3
{[%clk 0:00:20.8]} 25... Bxd3 {[%clk 0:00:41.8]} 26. Rxd3 {[%clk 0:00:20.9]}
26... bxa3 {[%clk 0:00:41.9]} 27. Ka2 {[%clk 0:00:19.2]} 27... Ra7 {[%clk
0:00:39.6]} 28. Rf1 {[%clk 0:00:13.6]} 28... Rac7 {[%clk 0:00:39.1]} 29. Rff3
{[%clk 0:00:13.8]} 29... Bb4 {[%clk 0:00:39.2]} 0-1

[Event "*** Titled Tuesday Blitz"]
[Site "Chess.com"]
[Date "2021.04.27"]
[Round "4"]
[White "AttackSparrow"]
[Black "Kostukov_Alex"]
[Result "1-0"]
[WhiteElo "2497"]
[BlackElo "2306"]
[TimeControl "180+1"]
[EndTime "10:38:34 PDT"]
[Termination "AttackSparrow won by resignation"]

1. e4 {[%clk 0:03:00.9]} 1... c5 {[%clk 0:02:59.6]} 2. c3 {[%clk 0:03:00.8]}
2... g6 {[%clk 0:02:55.8]} 3. d4 {[%clk 0:02:59.5]} 3... cxd4 {[%clk 0:02:56]}
4. cxd4 {[%clk 0:03:00.4]} 4... d5 {[%clk 0:02:55.9]} 5. exd5 {[%clk 0:03:00.5]}
5... Nf6 {[%clk 0:02:55.5]} 6. Nc3 {[%clk 0:03:00.6]} 6... Nxd5 {[%clk 0:02:55]}
7. Qb3 {[%clk 0:03:00.2]} 7... Nb6 {[%clk 0:02:46.2]} 8. Bb5+ {[%clk 0:03:00.5]}
8... Bd7 {[%clk 0:02:41.8]} 9. Nf3 {[%clk 0:02:58.5]} 9... Bg7 {[%clk
0:02:40.6]} 10. a4 {[%clk 0:02:57.4]} 10... O-O {[%clk 0:02:36.9]} 11. a5 {[%clk
0:02:56.1]} 11... Nc8 {[%clk 0:02:29.3]} 12. Bxd7 {[%clk 0:02:52.6]} 12... Qxd7
{[%clk 0:02:26.6]} 13. d5 {[%clk 0:02:43.1]} 13... Nd6 {[%clk 0:02:02.2]} 14.
O-O {[%clk 0:02:34.8]} 14... Na6 {[%clk 0:01:56.2]} 15. Be3 {[%clk 0:02:32.5]}
15... Nf5 {[%clk 0:01:50.3]} 16. Bf4 {[%clk 0:02:26.6]} 16... Nc5 {[%clk
0:01:47.3]} 17. Qc4 {[%clk 0:02:20.6]} 17... Rac8 {[%clk 0:01:46.2]} 18. Rfe1
{[%clk 0:02:15.1]} 18... Nd6 {[%clk 0:01:15.5]} 19. Qe2 {[%clk 0:02:12.3]} 19...
Rfe8 {[%clk 0:01:10.6]} 20. Rad1 {[%clk 0:02:11.5]} 20... Nb3 {[%clk 0:01:05.4]}
21. a6 {[%clk 0:01:56.3]} 21... b5 {[%clk 0:01:02.6]} 22. Be5 {[%clk 0:01:36.2]}
22... Nc4 {[%clk 0:00:50.4]} 23. Bxg7 {[%clk 0:01:35.5]} 23... Kxg7 {[%clk
0:00:51.3]} 24. h4 {[%clk 0:01:28.2]} 24... h5 {[%clk 0:00:49.8]} 25. Ne5 {[%clk
0:01:19.4]} 25... Qd6 {[%clk 0:00:42.8]} 26. Nxb5 {[%clk 0:01:07.5]} 26... Qxe5
{[%clk 0:00:38.2]} 27. Qxe5+ {[%clk 0:01:07.8]} 27... Nxe5 {[%clk 0:00:38.3]}
28. Rxe5 {[%clk 0:01:08.7]} 28... Ra8 {[%clk 0:00:19.8]} 29. Nc7 {[%clk
0:01:07.6]} 29... Nc5 {[%clk 0:00:16.5]} 30. Nxa8 {[%clk 0:01:05.8]} 30... Rxa8
{[%clk 0:00:17.4]} 31. Rxe7 {[%clk 0:01:05.4]} 31... Nxa6 {[%clk 0:00:17.9]} 32.
d6 {[%clk 0:01:05]} 32... Rd8 {[%clk 0:00:16.8]} 33. Rxa7 {[%clk 0:01:04.5]}
33... Nc5 {[%clk 0:00:16.8]} 34. d7 {[%clk 0:01:00.6]} 34... Kf6 {[%clk
0:00:15.4]} 35. Rc7 {[%clk 0:01:00.3]} 35... Ne6 {[%clk 0:00:15]} 36. Rc8 {[%clk
0:01:00]} 36... Ke7 {[%clk 0:00:13.9]} 37. Rxd8 {[%clk 0:01:00]} 37... Kxd8
{[%clk 0:00:14.8]} 38. g3 {[%clk 0:00:59.2]} 38... Nc5 {[%clk 0:00:15]} 39. Kf1
{[%clk 0:00:58.8]} 39... Nxd7 {[%clk 0:00:15.5]} 40. Rxd7+ {[%clk 0:00:57.3]}
40... Kxd7 {[%clk 0:00:16.4]} 41. Ke2 {[%clk 0:00:57.9]} 41... Kc6 {[%clk
0:00:17.3]} 42. Ke3 {[%clk 0:00:58.8]} 1-0

[Event "*** Titled Tuesday Blitz"]
[Site "Chess.com"]
[Date "2021.04.27"]
[Round "4"]
[White "AlexSuv"]
[Black "Valeron87"]
[Result "0-1"]
[WhiteElo "2551"]
[BlackElo "2419"]
[TimeControl "180+1"]
[EndTime "10:38:36 PDT"]
[Termination "Valeron87 won by resignation"]

1. d4 {[%clk 0:03:00.9]} 1... d5 {[%clk 0:02:59]} 2. c4 {[%clk 0:03:00.1]} 2...
e6 {[%clk 0:02:58.8]} 3. Nc3 {[%clk 0:03:00.3]} 3... c6 {[%clk 0:02:58.8]} 4. e4
{[%clk 0:02:59.9]} 4... dxe4 {[%clk 0:02:57.7]} 5. Nxe4 {[%clk 0:03:00.8]} 5...
Bb4+ {[%clk 0:02:57.8]} 6. Bd2 {[%clk 0:03:01.4]} 6... Qxd4 {[%clk 0:02:57.8]}
7. Bxb4 {[%clk 0:03:01.4]} 7... Qxe4+ {[%clk 0:02:58.4]} 8. Be2 {[%clk 0:03:02]}
8... c5 {[%clk 0:02:55.1]} 9. Bxc5 {[%clk 0:02:55.5]} 9... Qxg2 {[%clk
0:02:53.1]} 10. Qd6 {[%clk 0:02:30.5]} 10... Nd7 {[%clk 0:02:51.2]} 11. Bf3
{[%clk 0:02:15.3]} 11... Qg5 {[%clk 0:02:49.9]} 12. Be3 {[%clk 0:02:10.6]} 12...
Qa5+ {[%clk 0:02:30.8]} 13. Kf1 {[%clk 0:01:56.5]} 13... Qe5 {[%clk 0:02:29.4]}
14. Qd2 {[%clk 0:01:55.9]} 14... Ngf6 {[%clk 0:02:26.7]} 15. Ne2 {[%clk
0:01:55.1]} 15... O-O {[%clk 0:02:24.8]} 16. Rg1 {[%clk 0:01:55.1]} 16... Ne4
{[%clk 0:02:17.4]} 17. Qc2 {[%clk 0:01:46.9]} 17... Nef6 {[%clk 0:01:55.5]} 18.
Bd4 {[%clk 0:01:35.4]} 18... Qf5 {[%clk 0:01:47.2]} 19. Qc3 {[%clk 0:01:25.4]}
19... e5 {[%clk 0:01:43.1]} 20. Rg3 {[%clk 0:00:30.1]} 20... exd4 {[%clk
0:01:40.3]} 21. Nxd4 {[%clk 0:00:31]} 21... Qf4 {[%clk 0:01:10]} 22. Re1 {[%clk
0:00:29.8]} 22... Ne5 {[%clk 0:01:08.5]} 23. Ne2 {[%clk 0:00:20.4]} 23... Qf5
{[%clk 0:00:59.8]} 24. Nd4 {[%clk 0:00:20.7]} 24... Qd3+ {[%clk 0:00:55.9]} 25.
Qxd3 {[%clk 0:00:15.8]} 25... Nxd3 {[%clk 0:00:56.8]} 26. Re7 {[%clk 0:00:16.2]}
26... Nxb2 {[%clk 0:00:50.8]} 27. Nb5 {[%clk 0:00:13.6]} 27... Nxc4 {[%clk
0:00:48.6]} 28. Nc7 {[%clk 0:00:13.6]} 28... Rb8 {[%clk 0:00:47.9]} 29. Be2
{[%clk 0:00:08.4]} 29... Nd6 {[%clk 0:00:45.8]} 30. Bd3 {[%clk 0:00:06.4]} 30...
Nf5 {[%clk 0:00:43]} 31. Rf3 {[%clk 0:00:04]} 31... Nxe7 {[%clk 0:00:42.5]} 0-1

[Event "*** Titled Tuesday Blitz"]
[Site "Chess.com"]
[Date "2021.04.27"]
[Round "4"]
[White "ChronicUnhappiness"]
[Black "rikyshi"]
[Result "1-0"]
[WhiteElo "2326"]
[BlackElo "2187"]
[TimeControl "180+1"]
[EndTime "10:38:41 PDT"]
[Termination "ChronicUnhappiness won on time"]

1. d3 {[%clk 0:03:00.9]} 1... d5 {[%clk 0:02:37.5]} 2. Nf3 {[%clk 0:03:01.8]}
2... h6 {[%clk 0:02:31.4]} 3. g3 {[%clk 0:03:02.7]} 3... Nf6 {[%clk 0:02:30.8]}
4. Bg2 {[%clk 0:03:03]} 4... e6 {[%clk 0:02:24.9]} 5. O-O {[%clk 0:03:03.9]}
5... Bd6 {[%clk 0:02:22.1]} 6. c4 {[%clk 0:03:03.5]} 6... c5 {[%clk 0:02:15.9]}
7. cxd5 {[%clk 0:02:58.1]} 7... exd5 {[%clk 0:02:16.1]} 8. e4 {[%clk 0:02:58]}
8... dxe4 {[%clk 0:01:28.4]} 9. dxe4 {[%clk 0:02:57.2]} 9... Nc6 {[%clk
0:01:14.6]} 10. e5 {[%clk 0:02:26.7]} 10... Nxe5 {[%clk 0:01:02.3]} 11. Nxe5
{[%clk 0:02:24.9]} 11... Bxe5 {[%clk 0:01:01.9]} 12. Qe2 {[%clk 0:01:46.6]}
12... Qd4 {[%clk 0:00:38.5]} 13. Bf4 {[%clk 0:00:43.8]} 13... Nd7 {[%clk
0:00:19.1]} 14. Nc3 {[%clk 0:00:30.4]} 14... O-O {[%clk 0:00:15.9]} 15. Rad1
{[%clk 0:00:27.9]} 15... Bxf4 {[%clk 0:00:09.3]} 16. Rxd4 {[%clk 0:00:26.7]}
16... cxd4 {[%clk 0:00:09.5]} 17. Nd5 {[%clk 0:00:26.7]} 17... Bd6 {[%clk
0:00:08.2]} 18. Qe4 {[%clk 0:00:17.5]} 18... Nc5 {[%clk 0:00:07.3]} 19. Qxd4
{[%clk 0:00:17.1]} 19... Be6 {[%clk 0:00:04.4]} 20. Nf6+ {[%clk 0:00:15.6]} 1-0

[Event "*** Titled Tuesday Blitz"]
[Site "Chess.com"]
[Date "2021.04.27"]
[Round "4"]
[White "OlegKrivonosov"]
[Black "PelinGorki"]
[Result "1-0"]
[WhiteElo "2678"]
[BlackElo "2507"]
[TimeControl "180+1"]
[EndTime "10:38:42 PDT"]
[Termination "OlegKrivonosov won on time"]

1. Nf3 {[%clk 0:03:00.9]} 1... e6 {[%clk 0:02:59.6]} 2. c4 {[%clk 0:03:00.2]}
2... g5 {[%clk 0:02:59.5]} 3. h3 {[%clk 0:02:58.4]} 3... Bg7 {[%clk 0:02:59.2]}
4. d4 {[%clk 0:02:57.7]} 4... h6 {[%clk 0:02:59.4]} 5. Nc3 {[%clk 0:02:57]} 5...
d6 {[%clk 0:02:59.3]} 6. e4 {[%clk 0:02:56.4]} 6... Nd7 {[%clk 0:02:58]} 7. d5
{[%clk 0:02:54.8]} 7... e5 {[%clk 0:02:57.7]} 8. Be2 {[%clk 0:02:51.4]} 8... Ne7
{[%clk 0:02:57.2]} 9. Be3 {[%clk 0:02:49.7]} 9... Ng6 {[%clk 0:02:56]} 10. g3
{[%clk 0:02:49.6]} 10... O-O {[%clk 0:02:50]} 11. Nd2 {[%clk 0:02:48.4]} 11...
Nf6 {[%clk 0:02:46.6]} 12. Bg4 {[%clk 0:02:42]} 12... Bd7 {[%clk 0:02:37.1]} 13.
Bxd7 {[%clk 0:02:40.7]} 13... Qxd7 {[%clk 0:02:38]} 14. Qf3 {[%clk 0:02:34.5]}
14... Nh7 {[%clk 0:02:36.4]} 15. Qg4 {[%clk 0:02:27.1]} 15... f5 {[%clk
0:02:33.1]} 16. exf5 {[%clk 0:02:27]} 16... Rxf5 {[%clk 0:02:34]} 17. Nde4
{[%clk 0:02:25.6]} 17... Raf8 {[%clk 0:02:33.7]} 18. Qe2 {[%clk 0:02:13.7]}
18... a6 {[%clk 0:02:32]} 19. a4 {[%clk 0:02:07.2]} 19... R5f7 {[%clk
0:02:18.9]} 20. Qg4 {[%clk 0:02:04.5]} 20... Qd8 {[%clk 0:01:39.5]} 21. h4
{[%clk 0:01:58.2]} 21... Rf5 {[%clk 0:01:24.9]} 22. hxg5 {[%clk 0:01:52.3]}
22... Nxg5 {[%clk 0:01:20.1]} 23. Nxg5 {[%clk 0:01:50.6]} 23... hxg5 {[%clk
0:01:19.6]} 24. Ne4 {[%clk 0:01:49.9]} 24... c6 {[%clk 0:01:07.4]} 25. O-O
{[%clk 0:01:41.5]} 25... cxd5 {[%clk 0:01:04.8]} 26. cxd5 {[%clk 0:01:41.8]}
26... Bh6 {[%clk 0:01:04.9]} 27. Rac1 {[%clk 0:01:37.1]} 27... Kg7 {[%clk
0:01:00.6]} 28. Rc2 {[%clk 0:01:29.8]} 28... R8f7 {[%clk 0:00:07.1]} 29. Rfc1
{[%clk 0:01:26.5]} 29... Kh7 {[%clk 0:00:06.1]} 30. Rc8 {[%clk 0:01:20.9]} 30...
Qe7 {[%clk 0:00:05.2]} 31. R8c7 {[%clk 0:01:16.5]} 31... Qf8 {[%clk 0:00:04.6]}
32. Rxf7+ {[%clk 0:01:14.9]} 32... Qxf7 {[%clk 0:00:04.6]} 33. Nxd6 {[%clk
0:01:13.5]} 33... Rf4 {[%clk 0:00:03.6]} 34. gxf4 {[%clk 0:01:07.5]} 34... Qxd5
{[%clk 0:00:04.2]} 35. Rc7+ {[%clk 0:01:05.1]} 35... Bg7 {[%clk 0:00:04.4]} 36.
Nf5 {[%clk 0:00:55.6]} 1-0

[Event "*** Titled Tuesday Blitz"]
[Site "Chess.com"]
[Date "2021.04.27"]
[Round "4"]
[White "Alliswell998"]
[Black "tteshan"]
[Result "1-0"]
[WhiteElo "2443"]
[BlackElo "2249"]
[TimeControl "180+1"]
[EndTime "10:38:44 PDT"]
[Termination "Alliswell998 won by resignation"]

1. e4 {[%clk 0:03:00.9]} 1... e5 {[%clk 0:02:58.7]} 2. Nf3 {[%clk 0:03:00.8]}
2... Nc6 {[%clk 0:02:59]} 3. Bc4 {[%clk 0:03:00.5]} 3... Bc5 {[%clk 0:02:58.9]}
4. c3 {[%clk 0:03:00.9]} 4... Nf6 {[%clk 0:02:58.5]} 5. d3 {[%clk 0:03:01.4]}
5... O-O {[%clk 0:02:58.2]} 6. Bg5 {[%clk 0:03:00.8]} 6... h6 {[%clk 0:02:52.5]}
7. Bh4 {[%clk 0:03:00.4]} 7... a6 {[%clk 0:02:50.5]} 8. Bb3 {[%clk 0:02:59.3]}
8... d6 {[%clk 0:02:48.5]} 9. Nbd2 {[%clk 0:02:57.7]} 9... Ba7 {[%clk
0:02:36.4]} 10. Nf1 {[%clk 0:02:57.1]} 10... Be6 {[%clk 0:02:34.7]} 11. Bc2
{[%clk 0:02:55.5]} 11... d5 {[%clk 0:02:30.1]} 12. Qe2 {[%clk 0:02:55.1]} 12...
d4 {[%clk 0:02:27]} 13. Ng3 {[%clk 0:02:51.4]} 13... g5 {[%clk 0:02:20.6]} 14.
Nxg5 {[%clk 0:02:50.7]} 14... hxg5 {[%clk 0:02:20.8]} 15. Bxg5 {[%clk
0:02:51.6]} 15... Bc5 {[%clk 0:02:00]} 16. f4 {[%clk 0:02:32.8]} 16... Be7
{[%clk 0:01:53.1]} 17. f5 {[%clk 0:02:30.3]} 17... Bd7 {[%clk 0:01:45.8]} 18. h4
{[%clk 0:02:29]} 18... Nh7 {[%clk 0:01:39.9]} 19. Qh5 {[%clk 0:02:15.4]} 19...
Be8 {[%clk 0:00:53]} 20. Bh6 {[%clk 0:02:00.9]} 20... f6 {[%clk 0:00:33.6]} 21.
Qg4+ {[%clk 0:01:59.2]} 21... Ng5 {[%clk 0:00:27.7]} 22. hxg5 {[%clk 0:01:55.2]}
22... fxg5 {[%clk 0:00:26.9]} 23. Bxf8 {[%clk 0:01:46.5]} 23... Bxf8 {[%clk
0:00:27.4]} 24. O-O-O {[%clk 0:01:36.6]} 24... dxc3 {[%clk 0:00:23.9]} 25. Bb3+
{[%clk 0:01:35.5]} 25... Bf7 {[%clk 0:00:22.7]} 26. Qh3 {[%clk 0:01:31.9]} 26...
cxb2+ {[%clk 0:00:22]} 27. Kb1 {[%clk 0:01:31.2]} 27... Bg7 {[%clk 0:00:18.1]}
28. Qh7+ {[%clk 0:01:30.2]} 28... Kf8 {[%clk 0:00:18]} 29. Bxf7 {[%clk
0:01:26.9]} 29... Kxf7 {[%clk 0:00:18.9]} 30. f6 {[%clk 0:01:25.8]} 30... Kxf6
{[%clk 0:00:12.9]} 31. Nh5+ {[%clk 0:01:24.5]} 31... Ke6 {[%clk 0:00:11.2]} 32.
Nxg7+ {[%clk 0:01:23.8]} 32... Kd6 {[%clk 0:00:11.5]} 33. Nf5+ {[%clk
0:01:22.3]} 33... Kc5 {[%clk 0:00:11.3]} 34. Kxb2 {[%clk 0:01:19.2]} 34... Kb6
{[%clk 0:00:10.6]} 35. Qf7 {[%clk 0:01:16.2]} 35... Nd4 {[%clk 0:00:04.4]} 36.
Nxd4 {[%clk 0:01:09.7]} 36... Qxd4+ {[%clk 0:00:05.3]} 37. Kb1 {[%clk
0:01:09.7]} 37... Ka7 {[%clk 0:00:04.4]} 38. Qc4 {[%clk 0:01:09.1]} 38... Qb6+
{[%clk 0:00:04.2]} 39. Ka1 {[%clk 0:01:07.3]} 39... Rd8 {[%clk 0:00:03.5]} 40.
Rb1 {[%clk 0:01:07.4]} 40... Qa5 {[%clk 0:00:02.8]} 41. Rhc1 {[%clk 0:01:05.2]}
41... Rd4 {[%clk 0:00:02.8]} 42. Qxc7 {[%clk 0:01:02.3]} 42... Qxc7 {[%clk
0:00:01.7]} 43. Rxc7 {[%clk 0:01:01.6]} 1-0